{"text_format":"1","workbook":"xlsx","n_sheets":3,"sheets":["المجموعة الأولى","المجموعة الثانية","Sheet3"],"not_rendered":{"charts":0,"images":1,"macros":1,"external_links":0,"defined_names":2,"comments":0,"pivot_tables":0},"unopened":[],"bounds":{"document_bytes":16777216,"sheet_cells":100000,"rows_first":2000,"rows_last":500,"rows_between":2000,"halvings":0,"cell_chars":16384,"cell_head_chars":4096},"cells_cut":0,"cells_raw":0,"read":"whole","date_system":"1900"}

{"sheet":"المجموعة الأولى","index":0,"n_rows":91,"n_cols":21,"rows_kept":91,"cut":false,"hidden":false,"merged":[]}
[]
[null,null,1,{"$f":"IF(D5=\"\",\"\",MAX($C2:C2)+1)","v":2},{"$f":"IF(E5=\"\",\"\",MAX($C2:D2)+1)","v":3},{"$f":"IF(F5=\"\",\"\",MAX($C2:E2)+1)","v":4},{"$f":"IF(G5=\"\",\"\",MAX($C2:F2)+1)","v":5},{"$f":"IF(H5=\"\",\"\",MAX($C2:G2)+1)","v":6},{"$f":"IF(I5=\"\",\"\",MAX($C2:H2)+1)","v":7},{"$f":"IF(J5=\"\",\"\",MAX($C2:I2)+1)","v":8},{"$f":"IF(K5=\"\",\"\",MAX($C2:J2)+1)","v":9}]
[null,"اليوم",{"$f":"C4","v":"2021-02-28"},"2021-02-28","2021-02-28","2021-02-28","2021-02-28","2021-02-28","2021-02-28","2021-02-28","2021-02-28"]
[null,"التاريخ",{"$f":"U7","v":"2021-02-28"},{"$f":"C4","v":"2021-02-28"},{"$f":"C4+D30","v":"2021-02-28"},{"$f":"E4+E30","v":"2021-02-28"},{"$f":"F4","v":"2021-02-28"},{"$f":"F4+G30","v":"2021-02-28"},{"$f":"H4+H30","v":"2021-02-28"},{"$f":"I4","v":"2021-02-28"},{"$f":"I4+J30","v":"2021-02-28"}]
[null,"المادة","عربى","رياضيات","احياء","لغة ثانية","علم نفس","فيزياء","انجليزى","كيمياء","تطبيقات الرياضيات"]
["أسماء المراقبين","اللجان","الأولى","الثانية","الأولى","الأولى","الثانية","الأولى","الأولى","الثانية","الأولى"]
["احمد مصطفى",1,"ياسر موسى","فتحي شعبان","عصام عبدالجليل","سيد الحسيني","احمد حسني","محمود خطاب","محمد علي","محمود اسماعيل","أحمد يسري",null,null,null,null,null,null,null,null,"تاريخ بداية الامتحان","2021-02-28"]
["محمد علي يوسف",2,"محمد عبدالله","محمود اسماعيل","محمد غالي","هيثم هاشم","اسماء جمعة","عبدالرحمن الكردي","مروان عباس","محمد علي صقر","سيد الحسيني"]
["محمود اسماعيل",3,"احمد عبدالعظيم","صلاح محمود","مي أحمد","ياسر موسى","عبدالرحمن الكردي","فتحي شعبان","نهى محمد","اسماء جمعة","عمرو ماجد"]
["محمود خطاب",4,"احمد حسني","ياسر محمود","أحمد يسري","عمرو ماجد","صفاء","سيد الحسيني","محمد غالي","محمود خطاب","محمد علي صقر"]
["محمود ابوضيف",5,"هيثم هاشم","محمد علي يوسف","احمد مصطفى","مي أحمد","سيد الحسيني","ايمن عبدالمالك","محمد المراغي","خالد بسيوني","مينا يوسف"]
["صلاح محمود",6,"محمد غالي","مينا يوسف","حمادة عبدالمنعم","ياسر محمود","عصام عبدالجليل","سالم محمود","مي أحمد","محمد علي يوسف","فتحي شعبان"]
["تامر محمد",7,"نهى محمد","سيد الحسيني","عمرو ماجد","اسماء جمعة","محمد علي يوسف","سمية","هيثم هاشم","صبحي","محمد علي"]
["محمد عبدالله",8,"سالم محمود","احمد حسني","فتحي شعبان","ايمن عبدالمالك","عمرو ماجد","ياسر محمود","محمود اسماعيل","احمد مصطفى","خالد بسيوني"]
["محمد علي صقر",9,"مينا يوسف","محمد علي","سالم محمود","أحمد يسري","محمد غالي","صلاح محمود","محمود خطاب","سيد الحسيني","محمود ابوضيف"]
["مروان عباس",10,"محمد علي صقر","حمادة عبدالمنعم","ياسر محمود","صبحي","مينا يوسف","عصام عبدالجليل","عمرو ماجد","محمد غالي","سمية"]
["ياسر موسى"]
["فتحي شعبان","احتياط 1","صفاء","مي أحمد","محمد علي صقر","عبدالرحمن الكردي","هيثم هاشم","عمرو ماجد","ايمن عبدالمالك","مروان عباس","ياسر محمود"]
["احمد حسني","احتياط 2","أحمد يسري","تامر محمد","صلاح محمود","احمد عبدالعظيم","سالم محمود","نهى محمد","ياسر موسى","احمد حسني","احمد مصطفى"]
["ياسر محمود","احتياط 3","محمود اسماعيل","احمد عبدالعظيم","نهى محمد","محمود ابوضيف","خالد بسيوني","مروان عباس","صبحي","عصام عبدالجليل","محمد علي يوسف"]
["محمد غالي","احتياط 4","محمد علي","خالد بسيوني","مينا يوسف","صفاء","مي أحمد","محمد علي يوسف","سمية","احمد عبدالعظيم","نهى محمد"]
["محمد المراغي","احتياط 5","مروان عباس","ياسر موسى","محمود خطاب","نهى محمد","احمد عبدالعظيم","خالد بسيوني","تامر محمد","صلاح محمود","صبحي"]
["حمادة عبدالمنعم","احتياط 6","عبدالرحمن الكردي","هيثم هاشم","احمد عبدالعظيم","محمد المراغي","ياسر محمود","محمد عبدالله","محمود ابوضيف","محمد علي","تامر محمد"]
["ايمن عبدالمالك","احتياط 7","محمود خطاب","اسماء جمعة","صفاء","مروان عباس","محمود ابوضيف","هيثم هاشم","محمد علي يوسف","ياسر محمود","ياسر موسى"]
["عبدالرحمن الكردي","احتياط 8","محمد علي يوسف","نهى محمد","اسماء جمعة","محمود اسماعيل","محمد عبدالله","تامر محمد","محمد علي صقر","هيثم هاشم","عبدالرحمن الكردي"]
["محمد علي","احتياط 9","فتحي شعبان","أحمد يسري","محمد علي","سالم محمود","محمد المراغي","صفاء","اسماء جمعة","نهى محمد","حمادة عبدالمنعم"]
["سالم محمود","احتياط 10","ايمن عبدالمالك","عبدالرحمن الكردي","محمود اسماعيل","احمد مصطفى","محمود خطاب","محمد المراغي","خالد بسيوني","سمية","سالم محمود"]
["سمية"]
["مينا يوسف"]
["عصام عبدالجليل"]
["صبحي"]
["اسماء جمعة"]
["نهى محمد"]
["مي أحمد"]
["سيد الحسيني"]
["احمد عبدالعظيم"]
["هيثم هاشم"]
["خالد بسيوني"]
["صفاء"]
["عمرو ماجد"]
["أحمد يسري"]
[]
[]
[]
[]
[]
[]
[]
[]
[]
[]
[]
[]
[]
[]
[]
[]
[]
[]
[]
[]
[]
[]
[]
[]
[]
[]
[]
[]
[]
[]
[]
[]
[null,null,null,"عربى"]
[null,null,null,"انجليزى"]
[null,null,null,"علوم"]
[null,null,null,"درسات"]
[null,null,null,"دين"]
[null,null,null,"رياضيات"]
[null,null,null,"جبر"]
[null,null,null,"هندسة"]
[null,null,null,"حاسب"]
[null,null,null,"كيمياء"]
[null,null,null,"فيزياء"]
[null,null,null,"احياء"]
[null,null,null,"فلسفة"]
[null,null,null,"تاريخ"]
[null,null,null,"علم نفس"]
[null,null,null,"جغرافيا"]
[null,null,null,"تطبيقات الرياضيات"]
[null,null,null,"لغة ثانية"]

{"sheet":"المجموعة الثانية","index":1,"n_rows":91,"n_cols":11,"rows_kept":91,"cut":false,"hidden":false,"merged":[[3,2,3,3],[3,5,3,6],[3,8,3,9],[2,2,2,3],[2,5,2,6],[2,8,2,9]]}
[]
[null,null,{"$f":"'المجموعة الأولى'!C2","v":1},{"$f":"'المجموعة الأولى'!D2","v":2},{"$f":"'المجموعة الأولى'!E2","v":3},{"$f":"'المجموعة الأولى'!F2","v":4},{"$f":"'المجموعة الأولى'!G2","v":5},{"$f":"'المجموعة الأولى'!H2","v":6},{"$f":"'المجموعة الأولى'!I2","v":7},{"$f":"'المجموعة الأولى'!J2","v":8},{"$f":"'المجموعة الأولى'!K2","v":9}]
[null,"اليوم",{"$f":"'المجموعة الأولى'!C3","v":"2021-02-28"},null,{"$f":"'المجموعة الأولى'!E3","v":"2021-02-28"},{"$f":"'المجموعة الأولى'!F3","v":"2021-02-28"},null,{"$f":"'المجموعة الأولى'!H3","v":"2021-02-28"},{"$f":"'المجموعة الأولى'!I3","v":"2021-02-28"},null,{"$f":"'المجموعة الأولى'!K3","v":"2021-02-28"}]
[null,"التاريخ",{"$f":"'المجموعة الأولى'!C4","v":"2021-02-28"},null,{"$f":"'المجموعة الأولى'!E4","v":"2021-02-28"},{"$f":"'المجموعة الأولى'!F4","v":"2021-02-28"},null,{"$f":"'المجموعة الأولى'!H4","v":"2021-02-28"},{"$f":"'المجموعة الأولى'!I4","v":"2021-02-28"},null,{"$f":"I4+J30","v":"2021-02-28"}]
[null,"المادة",{"$f":"'المجموعة الأولى'!C5","v":"عربى"},{"$f":"'المجموعة الأولى'!D5","v":"رياضيات"},{"$f":"'المجموعة الأولى'!E5","v":"احياء"},{"$f":"'المجموعة الأولى'!F5","v":"لغة ثانية"},{"$f":"'المجموعة الأولى'!G5","v":"علم نفس"},{"$f":"'المجموعة الأولى'!H5","v":"فيزياء"},{"$f":"'المجموعة الأولى'!I5","v":"انجليزى"},{"$f":"'المجموعة الأولى'!J5","v":"كيمياء"},{"$f":"'المجموعة الأولى'!K5","v":"تطبيقات الرياضيات"}]
["أسماء المراقبين","اللجان","الأولى","الثانية","الأولى","الأولى","الثانية","الأولى","الأولى","الثانية","الأولى"]
["احمد مصطفى",1,"صلاح محمود","محمد علي","محمد غالي","عصام عبدالجليل","احمد مصطفى","ياسر محمود","سيد الحسيني","محمود اسماعيل","محمد علي صقر"]
["محمد علي يوسف",2,"محمد علي يوسف","عمرو ماجد","محمد عبدالله","هيثم هاشم","خالد بسيوني","عبدالرحمن الكردي","نهى محمد","ياسر موسى","محمود اسماعيل"]
["محمود اسماعيل",3,"احمد حسني","محمد علي صقر","حمادة عبدالمنعم","اسماء جمعة","عمرو ماجد","ايمن عبدالمالك","صبحي","نهى محمد","احمد مصطفى"]
["محمود خطاب",4,"سمية","محمد علي يوسف","صبحي","صلاح محمود","محمد علي","عصام عبدالجليل","احمد عبدالعظيم","عمرو ماجد","احمد حسني"]
["محمود ابوضيف",5,"أحمد يسري","محمد عبدالله","عبدالرحمن الكردي","احمد مصطفى","ياسر موسى","مي أحمد","تامر محمد","اسماء جمعة","محمد علي يوسف"]
["صلاح محمود",6,"عبدالرحمن الكردي","محمود خطاب","ياسر محمود","محمد علي يوسف","مينا يوسف","صبحي","محمد غالي","صلاح محمود","نهى محمد"]
["تامر محمد",7,"محمد عبدالله","عصام عبدالجليل","عمرو ماجد","سمية","محمد غالي","محمود ابوضيف","أحمد يسري","صفاء","ياسر موسى"]
["محمد عبدالله",8,"ايمن عبدالمالك","محمود اسماعيل","محمود خطاب","مروان عباس","محمد عبدالله","أحمد يسري","فتحي شعبان","احمد مصطفى","صبحي"]
["محمد علي صقر",9,"محمد غالي","احمد عبدالعظيم","محمد علي يوسف","احمد حسني","مروان عباس","حمادة عبدالمنعم","ياسر موسى","مي أحمد","عبدالرحمن الكردي"]
["مروان عباس",10,"خالد بسيوني","مي أحمد","محمد علي صقر","محمد غالي","هيثم هاشم","محمد عبدالله","احمد حسني","عبدالرحمن الكردي","عمرو ماجد"]
["ياسر موسى"]
["فتحي شعبان","احتياط 1","عمرو ماجد","محمد غالي","ايمن عبدالمالك","صفاء","صبحي","محمد المراغي","محمود ابوضيف","فتحي شعبان","عصام عبدالجليل"]
["احمد حسني","احتياط 2","ياسر محمود","نهى محمد","ياسر موسى","محمد عبدالله","حمادة عبدالمنعم","محمد غالي","مينا يوسف","احمد حسني","فتحي شعبان"]
["ياسر محمود","احتياط 3","مروان عباس","سالم محمود","مي أحمد","ايمن عبدالمالك","فتحي شعبان","تامر محمد","محمود اسماعيل","ياسر محمود","محمد عبدالله"]
["محمد غالي","احتياط 4","محمود خطاب","عبدالرحمن الكردي","محمود ابوضيف","محمد علي","نهى محمد","هيثم هاشم","محمد علي يوسف","محمد علي صقر","خالد بسيوني"]
["محمد المراغي","احتياط 5","تامر محمد","اسماء جمعة","أحمد يسري","سالم محمود","صفاء","صلاح محمود","محمد علي","محمد غالي","محمد المراغي"]
["حمادة عبدالمنعم","احتياط 6","مي أحمد","مينا يوسف","محمد علي","احمد عبدالعظيم","سالم محمود","اسماء جمعة","خالد بسيوني","ايمن عبدالمالك","تامر محمد"]
["ايمن عبدالمالك","احتياط 7","مينا يوسف","سمية","سالم محمود","عمرو ماجد","احمد حسني","مروان عباس","صفاء","محمد المراغي","مي أحمد"]
["عبدالرحمن الكردي","احتياط 8","محمد علي صقر","فتحي شعبان","اسماء جمعة","تامر محمد","محمود خطاب","نهى محمد","عبدالرحمن الكردي","سيد الحسيني","هيثم هاشم"]
["محمد علي","احتياط 9","صبحي","سيد الحسيني","صفاء","ياسر محمود","صلاح محمود","محمد علي صقر","عمرو ماجد","محمود ابوضيف","مروان عباس"]
["سالم محمود","احتياط 10","محمد علي","ايمن عبدالمالك","محمود اسماعيل","مينا يوسف","عبدالرحمن الكردي","احمد حسني","هيثم هاشم","خالد بسيوني","احمد عبدالعظيم"]
["سمية"]
["مينا يوسف"]
["عصام عبدالجليل"]
["صبحي"]
["اسماء جمعة"]
["نهى محمد"]
["مي أحمد"]
["سيد الحسيني"]
["احمد عبدالعظيم"]
["هيثم هاشم"]
["خالد بسيوني"]
["صفاء"]
["عمرو ماجد"]
["أحمد يسري"]
[]
[]
[]
[]
[]
[]
[]
[]
[]
[]
[]
[]
[]
[]
[]
[]
[]
[]
[]
[]
[]
[]
[]
[]
[]
[]
[]
[]
[]
[]
[]
[]
[null,null,null,"عربى"]
[null,null,null,"انجليزى"]
[null,null,null,"علوم"]
[null,null,null,"درسات"]
[null,null,null,"دين"]
[null,null,null,"رياضة"]
[null,null,null,"جبر"]
[null,null,null,"هندسة"]
[null,null,null,"حاسب"]
[null,null,null,"كيمياء"]
[null,null,null,"فيزياء"]
[null,null,null,"احياء"]
[null,null,null,"فلسفة"]
[null,null,null,"تاريخ"]
[null,null,null,"علم نفس"]
[null,null,null,"جغرافيا"]
[null,null,null,"تطبيقات الرياضيات"]
[null,null,null,"لغة ثانية"]

{"sheet":"Sheet3","index":2,"n_rows":37,"n_cols":19,"rows_kept":37,"cut":false,"hidden":false,"merged":[[35,4,35,5],[36,4,36,5],[30,4,31,4],[30,8,30,9],[31,8,31,9],[32,4,33,4],[32,8,32,9],[33,8,33,9],[26,4,27,4],[26,8,26,9],[27,8,27,9],[28,4,29,4],[28,8,28,9],[29,8,29,9],[22,4,23,4],[22,8,22,9],[23,8,23,9],[24,4,25,4],[24,8,24,9],[25,8,25,9],[18,4,19,4],[18,8,18,9],[19,8,19,9],[20,4,21,4],[20,8,20,9],[21,8,21,9],[14,4,15,4],[14,8,14,9],[15,8,15,9],[16,4,17,4],[16,8,16,9],[17,8,17,9],[4,4,4,6],[5,4,5,6],[6,4,6,6],[13,8,13,9],[11,4,11,6]]}
[null,1]
[]
[null,{"$f":"HLOOKUP($B$1,'المجموعة الأولى'!$C$2:$K$6,5,FALSE)","v":"الأولى"}]
[null,{"$f":"HLOOKUP($B$1,'المجموعة الأولى'!$C$2:$K$6,4,FALSE)","v":"عربى"}]
[null,{"$f":"HLOOKUP($B$1,'المجموعة الأولى'!$C$2:$K$6,3,FALSE)","v":"2021-02-28"},null,null,"مديرية التربية والتعليم بالجيزة",null,null,null,"الفترة :  ",{"$f":"B3","v":"الأولى"}]
[null,null,null,null,"إدارة 6 اكتوبر التعليمية",null,null,null,"المادة :",{"$f":"B4","v":"عربى"},null,null,null,null,null,null,"المادة","من ","إلى"]
[null,null,null,null,"مدارس أم المؤمنين الخاصة",null,null,null,"من :",{"$f":"IF(OR(B1>=35,J6=\"\"),\"\",VLOOKUP(J6,Q7:S24,2,FALSE))","v":"09:00:00"},null,null,null,null,null,null,"عربى","09:00:00","10:30:00"]
[null,null,null,null,null,null,null,null,"إلى :",{"$f":"IF(OR(B1>=35,J6=\"\"),\"\",VLOOKUP(J6,Q7:S24,3,FALSE))","v":"10:30:00"},null,null,null,null,null,null,"انجليزى","09:00:00","10:30:00"]
[null,null,null,null,null,null,null,null,null,null,null,null,null,null,null,null,"علوم"]
[null,null,null,null,null,"امتحان الفصل الدراسي الأول للعام الدراسي 2020 / 2021",null,null,null,null,null,null,null,null,null,null,"درسات"]
[null,null,null,null,null,null,null,null,null,null,null,null,null,null,null,null,"دين"]
[null,null,null,null,"كشف توزيع الملاحظة عن يوم ",null,null,{"$f":"B5","v":"2021-02-28"},"الموافق :",{"$f":"B5","v":"2021-02-28"},null,null,null,null,null,null,"رياضيات","11:30:00","01:00:00"]
[null,null,null,null,null,null,null,null,null,null,null,null,null,null,null,null,"جبر"]
[null,null,null,null,"رقم اللجنة",null,"اسم الملاحظ","التوقيع","ملاحظات",null,null,null,null,null,null,null,"هندسة"]
[null,null,null,null,1,1,{"$f":"HLOOKUP(Sheet3!B1,'المجموعة الأولى'!$C$2:$K$7,6,0)","v":"ياسر موسى"},null,null,null,null,null,null,null,null,null,"حاسب"]
[null,null,null,null,null,2,{"$f":"HLOOKUP(Sheet3!B1,'المجموعة الثانية'!$C$2:$K$7,6,0)","v":"صلاح محمود"},null,null,null,null,null,null,null,null,null,"كيمياء","11:30:00","12:30:00"]
[null,null,null,null,2,1,{"$f":"HLOOKUP(Sheet3!B1,'المجموعة الأولى'!$C$2:$K$8,7,0)","v":"محمد عبدالله"},null,null,null,null,null,null,null,null,null,"فيزياء","09:00:00","10:00:00"]
[null,null,null,null,null,2,{"$f":"HLOOKUP(Sheet3!B1,'المجموعة الثانية'!$C$2:$K$8,7,0)","v":"محمد علي يوسف"},null,null,null,null,null,null,null,null,null,"احياء","09:00:00","10:00:00"]
[null,null,null,null,3,1,{"$f":"HLOOKUP(Sheet3!B1,'المجموعة الأولى'!$C$2:$K$9,8,0)","v":"احمد عبدالعظيم"},null,null,null,null,null,null,null,null,null,"فلسفة","09:00:00","10:00:00"]
[null,null,null,null,null,2,{"$f":"HLOOKUP(Sheet3!B1,'المجموعة الثانية'!$C$2:$K$9,8,0)","v":"احمد حسني"},null,null,null,null,null,null,null,null,null,"تاريخ","09:00:00","10:00:00"]
[null,null,null,null,4,1,{"$f":"HLOOKUP(Sheet3!B1,'المجموعة الأولى'!$C$2:$K$10,9,0)","v":"احمد حسني"},null,null,null,null,null,null,null,null,null,"علم نفس","11:00:00","12:00:00"]
[null,null,null,null,null,2,{"$f":"HLOOKUP(Sheet3!B1,'المجموعة الثانية'!$C$2:$K$10,9,0)","v":"سمية"},null,null,null,null,null,null,null,null,null,"جغرافيا","09:00:00","10:00:00"]
[null,null,null,null,5,1,{"$f":"HLOOKUP(Sheet3!B1,'المجموعة الأولى'!$C$2:$K$11,10,0)","v":"هيثم هاشم"},null,null,null,null,null,null,null,null,null,"تطبيقات الرياضيات","09:00:00","10:15:00"]
[null,null,null,null,null,2,{"$f":"HLOOKUP(Sheet3!B1,'المجموعة الثانية'!$C$2:$K$11,10,0)","v":"أحمد يسري"},null,null,null,null,null,null,null,null,null,"لغة ثانية","09:00:00","10:00:00"]
[null,null,null,null,6,1,{"$f":"HLOOKUP(Sheet3!B1,'المجموعة الأولى'!$C$2:$K$12,11,0)","v":"محمد غالي"}]
[null,null,null,null,null,2,{"$f":"HLOOKUP(Sheet3!B1,'المجموعة الثانية'!$C$2:$K$12,11,0)","v":"عبدالرحمن الكردي"}]
[null,null,null,null,7,1,{"$f":"HLOOKUP(Sheet3!B1,'المجموعة الأولى'!$C$2:$K$13,12,0)","v":"نهى محمد"}]
[null,null,null,null,null,2,{"$f":"HLOOKUP(Sheet3!B1,'المجموعة الثانية'!$C$2:$K$13,12,0)","v":"محمد عبدالله"}]
[null,null,null,null,8,1,{"$f":"HLOOKUP(Sheet3!B1,'المجموعة الأولى'!$C$2:$K$14,13,0)","v":"سالم محمود"}]
[null,null,null,null,null,2,{"$f":"HLOOKUP(Sheet3!B1,'المجموعة الثانية'!$C$2:$K$14,13,0)","v":"ايمن عبدالمالك"}]
[null,null,null,null,9,1,{"$f":"HLOOKUP(Sheet3!B1,'المجموعة الأولى'!$C$2:$K$15,14,0)","v":"مينا يوسف"}]
[null,null,null,null,null,2,{"$f":"HLOOKUP(Sheet3!B1,'المجموعة الثانية'!$C$2:$K$15,14,0)","v":"محمد غالي"}]
[null,null,null,null,10,1,{"$f":"HLOOKUP(Sheet3!B1,'المجموعة الأولى'!$C$2:$K$16,15,0)","v":"محمد علي صقر"}]
[null,null,null,null,null,2,{"$f":"HLOOKUP(Sheet3!B1,'المجموعة الثانية'!$C$2:$K$16,15,0)","v":"خالد بسيوني"}]
[]
[null,null,null,null,"رئيس الكنترول",null,null,"رئيس لجنة النظام والمراقبة",null,"مدير المدرسة"]
[null,null,null,null,"أمل محمود",null,null,"حسن شاكر",null,"محمد نعمان"]